bitfinex/quotes_BTCUSD_20251027
["timestamp","ask_amount","ask_price","bid_price","bid_amount"]
[1761608246345,0.23408448,114110.0,114100.0,0.2469302]
[1761608246839,0.23408448,114110.0,114100.0,0.0367702]
[1761608247051,0.23408448,114110.0,114100.0,0.0571653]
[1761608247052,0.68891267,114110.0,114100.0,0.0571653]
[1761608247257,0.68891267,114110.0,114100.0,0.2112453]
[1761608247672,0.32390349,114110.0,114100.0,0.2112453]
[1761608247884,0.68891267,114110.0,114100.0,0.2112453]
[1761608248512,0.68891267,114110.0,114100.0,0.2102453]
[1761608248922,0.69091267,114110.0,114100.0,0.2102453]
[1761608249165,0.69091267,114110.0,114100.0,0.1541653]
[1761608249166,1.03091267,114110.0,114100.0,0.1541653]
[1761608249381,3.03091267,114110.0,114100.0,0.2102453]
[1761608252467,2.72701367,114110.0,114100.0,0.2102453]
[1761608252657,2.14378067,114110.0,114100.0,0.2102453]
[1761608253584,2.08580067,114110.0,114100.0,0.2102453]
[1761608254215,2.08580067,114110.0,114100.0,0.26458492]
[1761608254216,0.64282349,114110.0,114100.0,0.26458492]
[1761608254423,0.77429049,114110.0,114100.0,0.26458492]
[1761608254633,0.79867049,114110.0,114100.0,0.26458492]
[1761608254843,0.79867049,114110.0,114100.0,0.2102453]
[1761608257314,1.16367967,114110.0,114100.0,0.2102453]
[1761608258742,0.79867049,114110.0,114100.0,0.2102453]
[1761608259791,0.79867049,114110.0,114100.0,0.38553013]
[1761608259999,0.79867049,114110.0,114100.0,0.2102453]
[1761608261487,0.77796249,114110.0,114100.0,0.2102453]
[1761608261692,0.77796249,114110.0,114100.0,0.38553013]
[1761608264001,0.46755402,114110.0,114100.0,0.46173611]
[1761608264422,0.44066402,114110.0,114100.0,0.48666611]
[1761608266970,0.61593349,114110.0,114100.0,0.48666611]
[1761608267172,0.61593349,114110.0,114100.0,0.46173611]
[1761608267405,0.63186349,114110.0,114100.0,0.46173611]
[1761608267819,0.64407349,114110.0,114100.0,0.46173611]
[1761608268918,0.62814349,114110.0,114100.0,0.46173611]
[1761608269787,0.45287402,114110.0,114100.0,0.46073611]
[1761608270021,0.62814349,114110.0,114100.0,0.46173611]
[1761608270436,0.35084501,114110.0,114100.0,0.48666611]
[1761608272929,0.002,114110.0,114100.0,0.48666611]
[1761608273136,0.002,114110.0,114100.0,0.51297185]
[1761608274138,0.53531296,114120.0,114110.0,0.17626947]
[1761608274345,0.64106197,114120.0,114110.0,0.2544736]
[1761608274509,0.64106197,114120.0,114110.0,0.2701236]
[1761608275435,0.64106197,114120.0,114110.0,0.2711236]
[1761608275646,0.00857885,114120.0,114110.0,0.2711236]
[1761608275867,0.71109922,114130.0,114120.0,0.17525411]
[1761608276080,0.70750922,114130.0,114120.0,0.37736488]
[1761608276294,0.72343922,114130.0,114120.0,0.37736488]
[1761608276509,0.73211164,114130.0,114120.0,0.37736488]
[1761608276733,0.73211164,114130.0,114120.0,0.40366663]
[1761608276937,0.78211164,114130.0,114120.0,0.40366663]
[1761608277384,0.78411164,114130.0,114120.0,0.40366663]
[1761608278221,0.78411164,114130.0,114120.0,0.35663586]
[1761608279304,0.78411164,114130.0,114120.0,0.33033411]
[1761608281749,1.23893983,114130.0,114120.0,0.15408]
[1761608284465,0.17525411,114120.0,114110.0,0.01038]
[1761608284678,0.17525411,114120.0,114110.0,0.22054]
[1761608284679,0.30132312,114120.0,114110.0,0.22054]
[1761608284885,0.31749312,114120.0,114110.0,0.21016]
[1761608285688,0.31749312,114120.0,114110.0,0.38642947]
[1761608285907,0.31749312,114120.0,114110.0,0.21116]
[1761608286379,0.63781612,114120.0,114110.0,0.21116]
[1761608286616,1.0028253,114120.0,114110.0,0.21116]
[1761608287525,1.3428253,114120.0,114110.0,0.21016]
[1761608287750,0.17526947,114110.0,114100.0,8.53e-05]
[1761608288006,0.30099848,114110.0,114100.0,0.2102453]
[1761608288227,0.31731848,114110.0,114100.0,0.2102453]
[1761608288451,0.31731848,114110.0,114100.0,0.25065629]
[1761608289358,0.31731848,114110.0,114100.0,0.25165629]
[1761608291656,0.31731848,114110.0,114100.0,0.25265629]
[1761608292109,0.31731848,114110.0,114100.0,0.26103629]
[1761608292323,0.31731848,114110.0,114100.0,0.27737629]
[1761608292776,0.31731848,114110.0,114100.0,0.27837629]
[1761608293877,0.51525411,114120.0,114110.0,0.17526947]
[1761608294120,0.17526947,114110.0,114100.0,0.45365689]
[1761608294329,0.51525411,114120.0,114110.0,0.001]
[1761608294742,0.53157411,114120.0,114110.0,0.01734]
[1761608294957,0.53157411,114120.0,114110.0,0.01634]
[1761608295168,0.53157411,114120.0,114110.0,0.10039961]
[1761608296013,0.58357411,114120.0,114110.0,0.10139961]
[1761608296447,0.58357411,114120.0,114110.0,0.10039961]
[1761608296903,0.58357411,114120.0,114110.0,0.68212648]
[1761608296904,0.052,114120.0,114110.0,0.68212648]
[1761608297114,0.052,114120.0,114110.0,0.66359954]
[1761608297321,0.002,114120.0,114110.0,0.66459954]
[1761608297769,0.52391224,114130.0,114120.0,0.17625411]
[1761608298002,0.52391224,114130.0,114120.0,0.41431948]
[1761608298180,0.52391224,114130.0,114120.0,0.44003948]
[1761608299287,0.54023224,114130.0,114120.0,0.44103948]
[1761608300868,0.54023224,114130.0,114120.0,0.26578537]
[1761608301075,0.54023224,114130.0,114120.0,0.44103948]
[1761608303884,0.52391224,114130.0,114120.0,0.44103948]
[1761608304107,0.00867242,114130.0,114120.0,0.82896994]
[1761608304320,0.18391118,114130.0,114120.0,0.82896994]
[1761608304611,0.17523876,114130.0,114120.0,0.82896994]
[1761608304842,0.18417338,114130.0,114120.0,0.82896994]
[1761608305314,0.18417338,114130.0,114120.0,0.46296948]
[1761608305529,0.18417338,114130.0,114120.0,0.74498457]
[1761608307657,0.18417338,114130.0,114120.0,0.37998411]
[1761608307868,0.18417338,114130.0,114120.0,0.37898411]
[1761608308079,0.18417338,114130.0,114120.0,0.56973046]
[1761608308288,0.18417338,114130.0,114120.0,0.37998411]
[1761608310014,0.18417338,114130.0,114120.0,0.44654542]
[1761608311572,0.18417338,114130.0,114120.0,0.62178542]
[1761608312258,0.00893462,114130.0,114120.0,0.62178542]
[1761608312475,0.18417338,114130.0,114120.0,0.62178542]
[1761608312692,0.17523876,114130.0,114120.0,0.62178542]
[1761608312939,0.18407195,114130.0,114120.0,0.62178542]
[1761608315452,0.18407195,114130.0,114120.0,0.98678588]
[1761608317556,0.00883319,114130.0,114120.0,0.98678588]
[1761608317765,0.18407195,114130.0,114120.0,0.98678588]
[1761608317973,0.17523876,114130.0,114120.0,0.98678588]
[1761608319231,0.17523876,114130.0,114120.0,0.98578588]
[1761608319439,0.17523876,114130.0,114120.0,0.98678588]
[1761608319824,0.17523876,114130.0,114120.0,0.62178542]
[1761608321936,0.18418609,114130.0,114120.0,0.62178542]
[1761608329276,0.18418609,114130.0,114120.0,0.62078542]
[1761608329496,0.18418609,114130.0,114120.0,0.62178542]
[1761608329702,0.18418609,114130.0,114120.0,0.62078542]
[1761608329909,0.18418609,114130.0,114120.0,0.62178542]
[1761608330749,0.18418609,114130.0,114120.0,0.67786542]
[1761608330960,0.52399833,114140.0,114130.0,0.17523876]
[1761608331168,0.61381734,114140.0,114130.0,0.12159901]
[1761608331373,0.61381734,114140.0,114130.0,0.13821901]
[1761608331576,0.61381734,114140.0,114130.0,0.13921901]
[1761608332414,0.61581734,114140.0,114130.0,0.13821901]
[1761608332636,0.61581734,114140.0,114130.0,0.13921901]
[1761608334157,0.61581734,114140.0,114130.0,0.13821901]
[1761608334368,0.61581734,114140.0,114130.0,0.13921901]
[1761608334562,0.61581734,114140.0,114130.0,0.13821901]
[1761608335868,0.62447991,114140.0,114130.0,0.13821901]
[1761608336076,0.62447991,114140.0,114130.0,0.13921901]
[1761608337336,0.62447991,114140.0,114130.0,0.13821901]
[1761608337527,0.62447991,114140.0,114130.0,0.31445777]
[1761608337726,0.62447991,114140.0,114130.0,0.13921901]
[1761608338058,0.002,114140.0,114130.0,0.31445777]
[1761608338270,0.002,114140.0,114130.0,0.67945823]
[1761608339805,0.002,114140.0,114130.0,0.70575573]
[1761608341313,0.18408269,114150.0,114140.0,0.1752234]
[1761608341520,0.00887415,114150.0,114140.0,0.45256131]
[1761608341739,0.00887415,114150.0,114140.0,0.46795131]
[1761608341963,0.90117281,114160.0,114150.0,0.001]
[1761608342185,0.53617235,114160.0,114150.0,0.05708]
[1761608342442,0.53617235,114160.0,114150.0,0.09733]
[1761608342662,0.90165924,114160.0,114150.0,0.12362488]
[1761608343566,0.90165924,114160.0,114150.0,0.1786575]
[1761608344403,0.90165924,114160.0,114150.0,0.15236262]
[1761608345054,0.91235861,114160.0,114150.0,0.15236262]
[1761608345263,0.92864861,114160.0,114150.0,0.12750262]
[1761608346096,0.95292861,114160.0,114150.0,0.12750262]
[1761608347408,0.92864861,114160.0,114150.0,0.12750262]
[1761608347616,0.92885796,114160.0,114150.0,0.12750262]
[1761608350549,0.35159515,114160.0,114150.0,0.32676067]
[1761608350777,0.35159515,114160.0,114150.0,0.69176113]
[1761608350778,0.01159515,114160.0,114150.0,0.69176113]
[1761608350998,0.00289578,114160.0,114150.0,0.69176113]
[1761608351505,0.00289578,114160.0,114150.0,0.71805386]
[1761608351925,0.00289578,114160.0,114150.0,1.17287333]
[1761608352143,0.00289578,114160.0,114150.0,0.80787287]
[1761608352356,0.00289578,114160.0,114150.0,1.04725386]
[1761608352591,0.00289578,114160.0,114150.0,0.6822534]
[1761608353236,0.00089578,114160.0,114150.0,1.04725386]
[1761608353654,0.00089578,114160.0,114150.0,1.05325386]
[1761608354103,0.00089578,114160.0,114150.0,1.05425386]
[1761608354515,0.00089578,114160.0,114150.0,1.05325386]
[1761608354725,0.00089578,114160.0,114150.0,1.04725386]
[1761608355157,0.00089578,114160.0,114150.0,1.05025386]
[1761608355747,0.95751941,114160.0,114150.0,0.03029273]
[1761608355964,1.38733842,114160.0,114150.0,0.21304]
[1761608356629,1.38733842,114160.0,114150.0,0.21004]
[1761608356828,1.38733842,114160.0,114150.0,0.21104]
[1761608357919,1.02322651,114160.0,114150.0,0.21104]
[1761608358443,1.02322651,114160.0,114150.0,0.21004]
[1761608358640,1.02322651,114160.0,114150.0,0.232082]
[1761608358877,1.02822651,114160.0,114150.0,0.232082]
[1761608361537,0.6633375,114160.0,114150.0,0.232082]
[1761608361776,1.00394651,114160.0,114150.0,0.248392]
[1761608361958,1.02822651,114160.0,114150.0,0.248392]
[1761608363728,0.6633375,114160.0,114150.0,0.248392]
[1761608364789,0.6633375,114160.0,114150.0,0.249392]
[1761608364992,0.54923849,114160.0,114150.0,0.249392]
[1761608365349,0.57351849,114160.0,114150.0,0.249392]
[1761608365550,0.57351849,114160.0,114150.0,0.248392]
[1761608365764,0.9384075,114160.0,114150.0,0.232082]
[1761608365979,0.9374075,114160.0,114150.0,0.21004]
[1761608366187,1.02222651,114160.0,114150.0,0.21004]
[1761608366421,1.02222651,114160.0,114150.0,0.21104]
[1761608366647,1.02222651,114160.0,114150.0,0.21204]
[1761608366862,1.02222651,114160.0,114150.0,0.21104]
[1761608367267,1.02222651,114160.0,114150.0,0.25060392]
[1761608368110,1.02422651,114160.0,114150.0,0.25060392]
[1761608368526,0.6593375,114160.0,114150.0,0.25060392]
[1761608368736,1.02422651,114160.0,114150.0,0.25060392]
[1761608368950,1.02422651,114160.0,114150.0,0.24960392]
[1761608369165,1.02422651,114160.0,114150.0,0.25060392]
[1761608370226,1.02422651,114160.0,114150.0,0.24960392]
[1761608370447,1.02422651,114160.0,114150.0,0.25060392]
[1761608370855,1.02422651,114160.0,114150.0,0.24960392]
[1761608371269,1.02422651,114160.0,114150.0,0.26699392]
[1761608371610,1.02422651,114160.0,114150.0,0.25060392]
[1761608372038,1.02422651,114160.0,114140.0,0.20926028]
[1761608372039,0.17520805,114150.0,114140.0,0.00938]
[1761608372246,0.57495706,114150.0,114140.0,0.01038]
[1761608372443,0.59161706,114150.0,114140.0,0.22038]
[1761608373278,0.59161706,114150.0,114140.0,0.22138]
[1761608373479,0.59161706,114150.0,114140.0,0.22038]
[1761608374510,0.59161706,114150.0,114140.0,0.22138]
[1761608374750,0.59161706,114150.0,114140.0,0.3966034]
[1761608375341,0.59161706,114150.0,114140.0,0.22038]
[1761608375951,0.59161706,114150.0,114140.0,0.42213904]
[1761608376516,0.59161706,114150.0,114140.0,0.42313904]
[1761608377005,0.56865706,114150.0,114140.0,0.43952904]
[1761608377805,0.20376805,114150.0,114140.0,0.43952904]
[1761608380181,0.22672805,114150.0,114140.0,0.24691564]
[1761608380683,0.20376805,114150.0,114140.0,0.26330564]
[1761608380914,0.20376805,114150.0,114140.0,0.43852904]
[1761608381439,0.22672805,114150.0,114140.0,0.43852904]
[1761608382283,0.20376805,114150.0,114140.0,0.43852904]
[1761608383038,0.20376805,114150.0,114140.0,0.26330564]
[1761608383270,0.20376805,114150.0,114140.0,0.001]
[1761608383271,3.38632508,114150.0,114140.0,0.001]
[1761608383474,3.38632508,114150.0,114140.0,0.211]
[1761608383475,2.84180108,114150.0,114140.0,0.211]
[1761608383878,2.86810294,114150.0,114140.0,0.211]
[1761608384519,2.87629041,114150.0,114140.0,0.211]
[1761608384743,2.87629041,114150.0,114140.0,0.21]
[1761608385122,2.88129041,114150.0,114140.0,0.21]
[1761608385297,2.88229041,114150.0,114140.0,0.21]
[1761608387780,2.89982041,114150.0,114140.0,0.21]
[1761608388081,2.88229041,114150.0,114140.0,0.21]
[1761608388288,2.87410294,114150.0,114140.0,0.21]
[1761608391172,2.50923494,114150.0,114140.0,0.21]
[1761608391470,2.31894594,114150.0,114140.0,0.21]
[1761608393492,1.41862694,114150.0,114140.0,0.21]
[1761608399622,1.39232508,114150.0,114140.0,0.21]
[1761608399829,1.02743607,114150.0,114140.0,0.21]
[1761608400986,0.66254706,114150.0,114140.0,0.21]
[1761608401199,0.66254706,114150.0,114140.0,0.24754]
[1761608401200,0.63958706,114150.0,114140.0,0.24754]
[1761608402061,1.00447607,114150.0,114140.0,0.24754]
[1761608402247,1.02890607,114150.0,114140.0,0.21]
[1761608402498,1.02290607,114150.0,114140.0,0.211]
[1761608402704,1.02290607,114150.0,114140.0,0.212]
[1761608403961,1.02290607,114150.0,114140.0,0.211]
[1761608404381,1.02490607,114150.0,114140.0,0.211]
[1761608404591,1.02490607,114150.0,114140.0,0.25291179]
[1761608405029,0.63558706,114150.0,114140.0,0.26835179]
[1761608405462,0.60702706,114150.0,114140.0,0.26835179]
[1761608405679,0.51720805,114150.0,114140.0,0.29185179]
[1761608406116,0.53295805,114150.0,114140.0,0.26835179]
[1761608410826,0.54495805,114150.0,114140.0,0.26835179]
[1761608411665,0.90984706,114150.0,114140.0,0.26835179]
[1761608413403,0.51720805,114150.0,114140.0,0.29184179]
[1761608414589,0.89584706,114150.0,114140.0,0.26835179]
[1761608414765,0.90784706,114150.0,114140.0,0.26935179]
[1761608415264,0.00089578,114160.0,114150.0,0.17620805]
[1761608415477,0.00089578,114160.0,114150.0,0.66185607]
[1761608415695,0.00089578,114160.0,114150.0,0.67770607]
[1761608416444,0.00089578,114160.0,114150.0,0.76752508]
[1761608417568,0.00289578,114160.0,114150.0,0.76752508]
[1761608417771,0.00289578,114160.0,114150.0,0.76726511]
[1761608418405,0.00089578,114160.0,114150.0,0.76726511]
[1761608418609,0.00089578,114160.0,114150.0,0.77626511]
[1761608418851,0.00089578,114160.0,114150.0,0.77726511]
[1761608426707,0.00089578,114160.0,114150.0,1.14189415]
[1761608426911,0.00089578,114160.0,114150.0,0.77726511]
[1761608429834,0.00089578,114160.0,114150.0,0.05679]
[1761608430039,0.00089578,114160.0,114150.0,0.07349]
[1761608430040,0.95808657,114160.0,114150.0,0.07349]
[1761608430263,0.59345753,114160.0,114150.0,0.22857]
[1761608430441,0.59345753,114160.0,114150.0,0.24403]
[1761608430873,0.59345753,114160.0,114150.0,0.23403]
[1761608431096,0.56846753,114160.0,114150.0,0.28164136]
[1761608431304,0.56846753,114160.0,114150.0,0.28264136]
[1761608431913,0.56846753,114160.0,114150.0,0.45784941]
[1761608432122,0.56846753,114160.0,114150.0,0.28264136]
[1761608432542,0.56846753,114160.0,114150.0,0.30759136]
[1761608432768,0.20383849,114160.0,114150.0,0.48279941]
[1761608432975,0.17608849,114160.0,114150.0,0.48279941]
[1761608434088,0.17608849,114160.0,114150.0,0.30759136]
[1761608434750,0.19249849,114160.0,114150.0,0.28264136]
[1761608434960,0.22882849,114160.0,114150.0,0.26718136]
[1761608435168,0.59345753,114160.0,114150.0,0.26718136]
[1761608435383,0.95808657,114160.0,114150.0,0.05704]
[1761608435592,0.95808657,114160.0,114150.0,0.21212]
[1761608436456,1.38790558,114160.0,114150.0,0.002]
[1761608436674,0.17520805,114150.0,114140.0,0.001]
[1761608436903,0.1752234,114140.0,114130.0,0.001]
[1761608437111,0.2029734,114140.0,114130.0,0.18786]
[1761608437320,0.56760244,114140.0,114130.0,0.18786]
[1761608438184,0.59259244,114140.0,114130.0,0.18786]
[1761608438638,0.59259244,114140.0,114130.0,0.1734]
[1761608439092,0.59259244,114140.0,114130.0,0.2446784]
[1761608439093,0.2029734,114140.0,114130.0,0.2446784]
[1761608439317,0.1752234,114140.0,114130.0,0.2446784]
[1761608439533,0.1916334,114140.0,114130.0,0.2446784]
[1761608440426,0.1752234,114140.0,114130.0,0.2696284]
[1761608442885,0.1752234,114140.0,114130.0,0.44486716]
[1761608443325,0.1916334,114140.0,114130.0,0.2446784]
[1761608443779,0.28512746,114150.0,114130.0,0.41991716]
[1761608444008,0.1752234,114140.0,114130.0,0.8094962]
[1761608444224,0.1752234,114140.0,114130.0,0.44486716]
[1761608444439,0.1752234,114140.0,114130.0,0.8169462]
[1761608445093,0.1752234,114140.0,114130.0,0.45231716]
[1761608446646,0.28512746,114150.0,114130.0,0.8169462]
[1761608446861,0.1752234,114140.0,114130.0,0.8169462]
[1761608447067,0.6661665,114150.0,114130.0,0.8169462]
[1761608447282,0.1752234,114140.0,114130.0,0.8169462]
[1761608447725,0.1752234,114140.0,114130.0,0.45231716]
[1761608448023,0.1752234,114140.0,114130.0,0.45131716]
[1761608448259,0.1752234,114140.0,114130.0,0.45231716]
[1761608448462,0.62512746,114150.0,114140.0,0.001]
[1761608448669,0.91634749,114150.0,114140.0,0.001]
[1761608448881,0.55171845,114150.0,114140.0,0.01646]
[1761608449090,0.55171845,114150.0,114140.0,0.09815462]
[1761608450326,0.55371845,114150.0,114140.0,0.09815462]
[1761608450494,0.55371845,114150.0,114140.0,0.27337802]
[1761608450697,0.55371845,114150.0,114140.0,0.09815462]
[1761608451668,0.52596845,114150.0,114140.0,0.29732802]
[1761608451870,0.52596845,114150.0,114140.0,0.29832802]
[1761608452677,0.52396845,114150.0,114140.0,0.29832802]
[1761608453500,0.54037845,114150.0,114140.0,0.10115462]
[1761608453705,0.94133749,114150.0,114140.0,0.10115462]
[1761608454509,0.52396845,114150.0,114140.0,0.31885036]
[1761608454714,0.52396845,114150.0,114140.0,0.30132802]
[1761608455521,0.52396845,114150.0,114140.0,0.10115462]
[1761608455726,0.94133749,114150.0,114140.0,0.09815462]
[1761608456136,0.94133749,114150.0,114140.0,0.09915462]
[1761608456344,0.91634749,114150.0,114140.0,0.09915462]
[1761608456550,0.91634749,114150.0,114140.0,0.27437802]
[1761608457445,0.55171845,114150.0,114140.0,0.27437802]
[1761608457652,0.55171845,114150.0,114140.0,0.09915462]
[1761608457887,0.55171845,114150.0,114140.0,0.27437802]
[1761608458094,0.55171845,114150.0,114140.0,0.09915462]
[1761608458309,0.52396845,114150.0,114140.0,0.27437802]
[1761608458528,0.88859749,114150.0,114140.0,0.29806802]
[1761608460079,0.88859749,114150.0,114140.0,0.27437802]
[1761608460080,0.90461749,114150.0,114140.0,0.27437802]
[1761608460292,0.88859749,114150.0,114140.0,0.27437802]
[1761608460516,0.52396845,114150.0,114140.0,0.29806802]
[1761608461826,0.00089578,114160.0,114150.0,0.17620805]
[1761608462084,0.00089578,114160.0,114150.0,0.45313706]
[1761608462299,0.00089578,114160.0,114150.0,0.46788706]
[1761608462740,0.00089578,114160.0,114150.0,0.46888706]
[1761608462974,0.00089578,114160.0,114150.0,0.8335161]
[1761608463610,0.00089578,114160.0,114150.0,0.46888706]
[1761608463826,0.00289578,114160.0,114150.0,0.46888706]
[1761608464071,0.19210849,114160.0,114150.0,0.26998901]
[1761608464289,0.20380849,114160.0,114150.0,0.18017]
[1761608464522,0.22750849,114160.0,114150.0,0.15604]
[1761608464747,0.22750849,114160.0,114150.0,0.001]
[1761608464748,0.95676657,114160.0,114150.0,0.001]
[1761608464966,0.95676657,114160.0,114150.0,0.21016]
[1761608465182,0.95676657,114160.0,114150.0,0.21116]
[1761608465399,0.95676657,114160.0,114150.0,0.21716]
[1761608465679,0.95676657,114160.0,114150.0,0.2573769]
[1761608465905,0.22750849,114160.0,114150.0,0.43258495]
[1761608468007,0.22750849,114160.0,114150.0,0.2573769]
[1761608468659,0.22750849,114160.0,114150.0,0.43258495]
[1761608469970,0.22750849,114160.0,114150.0,0.44867495]
[1761608470837,0.22750849,114160.0,114150.0,0.44767495]
[1761608471057,0.02861578,114160.0,114150.0,0.81330399]
[1761608471262,0.02861578,114160.0,114150.0,0.44867495]
[1761608471671,0.02861578,114160.0,114150.0,0.83647399]
[1761608471672,0.00089578,114160.0,114150.0,0.83647399]
[1761608473865,0.00089578,114160.0,114150.0,0.926293]
[1761608474071,0.00089578,114160.0,114150.0,0.56166396]
[1761608474291,0.00089578,114160.0,114150.0,0.926293]
[1761608475165,0.00089578,114160.0,114150.0,0.935293]
[1761608475367,0.00089578,114160.0,114150.0,0.927293]
[1761608475766,0.00089578,114160.0,114150.0,0.929293]
[1761608476320,0.00089578,114160.0,114150.0,0.928293]
[1761608477639,0.00089578,114160.0,114150.0,0.56366396]
[1761608477887,0.00089578,114160.0,114150.0,0.928293]
[1761608479802,0.00089578,114160.0,114150.0,0.92832548]
[1761608482898,0.00089578,114160.0,114150.0,0.56366396]
[1761608483105,0.00089578,114160.0,114150.0,0.92832548]
[1761608483699,0.01606578,114160.0,114150.0,0.54049396]
[1761608484111,0.00089578,114160.0,114150.0,0.35350396]
[1761608484310,0.00089578,114160.0,114150.0,0.73882396]
[1761608484518,0.00089578,114160.0,114150.0,1.10348548]
[1761608484732,0.00089578,114160.0,114150.0,0.73882396]
[1761608485328,0.00089578,114160.0,114150.0,1.10348548]
[1761608487461,0.00089578,114160.0,114150.0,1.10344548]
[1761608488492,0.00089578,114160.0,114150.0,0.71816548]
[1761608488712,0.00089578,114160.0,114150.0,1.10344548]
[1761608491277,0.00089578,114160.0,114150.0,0.73878396]
[1761608491516,0.00089578,114160.0,114150.0,1.10344548]
[1761608497036,0.00089578,114160.0,114150.0,0.73878396]
[1761608497307,0.00089578,114160.0,114150.0,1.10344548]
[1761608500009,0.00089578,114160.0,114150.0,0.73878396]
[1761608500214,0.00089578,114160.0,114150.0,1.10344548]
[1761608504869,0.00089578,114160.0,114150.0,0.73878396]
[1761608505108,0.00089578,114160.0,114150.0,1.10344548]
[1761608512035,0.00089578,114160.0,114150.0,1.468107]
[1761608514203,0.00089578,114160.0,114150.0,1.808107]
[1761608515502,0.00089578,114160.0,114150.0,1.806107]
[1761608517006,0.00089578,114160.0,114150.0,1.816107]
[1761608517223,0.00089578,114160.0,114150.0,1.817107]
[1761608520478,0.00089578,114160.0,114150.0,1.88608388]
[1761608525242,0.00089578,114160.0,114150.0,0.70570396]
[1761608525472,0.00089578,114160.0,114150.0,1.45548548]
[1761608525689,0.00089578,114160.0,114150.0,1.11128548]
[1761608525900,0.00089578,114160.0,114150.0,0.74662396]
[1761608526103,0.00089578,114160.0,114150.0,1.11128548]
[1761608526280,0.00089578,114160.0,114150.0,1.11028548]
[1761608526516,0.00089578,114160.0,114150.0,1.11128548]
[1761608526727,0.00089578,114160.0,114150.0,1.10228548]
[1761608527136,0.00089578,114160.0,114150.0,1.10728548]
[1761608527341,0.00089578,114160.0,114150.0,1.10128548]
[1761608527755,0.00089578,114160.0,114150.0,1.10528548]
[1761608530408,0.00089578,114160.0,114150.0,0.95136548]
[1761608530606,0.00089578,114160.0,114150.0,1.10528548]
[1761608532698,0.00089578,114160.0,114150.0,0.004]
[1761608532699,0.59281001,114160.0,114150.0,0.004]
[1761608532906,0.59281001,114160.0,114150.0,0.2352]
[1761608533130,0.61910456,114160.0,114150.0,0.38912]
[1761608533564,0.61910456,114160.0,114150.0,0.38812]
[1761608533893,0.61910456,114160.0,114150.0,0.38512]
[1761608534426,0.62410456,114160.0,114150.0,0.38612]
[1761608535772,1.05392357,114160.0,114150.0,0.2312]
[1761608535983,1.05392357,114160.0,114150.0,0.3852]
[1761608539972,1.05392357,114160.0,114150.0,0.21004]
[1761608540176,1.41858509,114160.0,114150.0,0.05604]
[1761608540453,1.41858509,114160.0,114150.0,0.21004]
[1761608540651,1.41858509,114160.0,114130.0,0.05604]
[1761608540652,0.51523717,114140.0,114130.0,0.05604]
[1761608540860,1.0217777,114140.0,114130.0,0.21004]
[1761608541989,1.38727656,114140.0,114130.0,0.21004]
[1761608542615,1.41357983,114140.0,114130.0,0.21004]
[1761608542830,1.77966002,114140.0,114130.0,0.21004]
[1761608543061,1.78466002,114140.0,114130.0,0.21004]
[1761608543685,1.41957983,114140.0,114130.0,0.21004]
[1761608544550,1.78466002,114140.0,114130.0,0.21004]
[1761608544743,1.41957983,114140.0,114130.0,0.21004]
[1761608544961,1.78466002,114140.0,114130.0,0.21004]
[1761608545194,1.41957983,114140.0,114130.0,0.21004]
[1761608545416,1.78466002,114140.0,114130.0,0.21004]
[1761608550310,1.79280898,114140.0,114130.0,0.21004]
[1761608552184,1.42772879,114140.0,114130.0,0.21004]
[1761608552839,1.42772879,114140.0,114130.0,0.21104]
[1761608553028,1.42772879,114140.0,114130.0,0.21004]
[1761608558731,1.42772879,114140.0,114130.0,0.21104]
[1761608561141,0.69756841,114140.0,114130.0,0.21104]
[1761608561358,1.42772879,114140.0,114130.0,0.21004]
[1761608561568,1.0626486,114140.0,114130.0,0.21104]
[1761608562202,1.42772879,114140.0,114130.0,0.21104]
[1761608563233,0.69756841,114140.0,114130.0,0.21104]
[1761608563478,1.42772879,114140.0,114130.0,0.21104]
[1761608564067,1.42777175,114140.0,114130.0,0.21104]
[1761608565251,1.06269156,114140.0,114130.0,0.21104]
[1761608571178,1.42777175,114140.0,114130.0,0.21104]
[1761608573687,0.69761137,114140.0,114130.0,0.21104]
[1761608573906,1.42777175,114140.0,114130.0,0.21104]
[1761608575200,1.42777175,114140.0,114130.0,0.21004]
[1761608575404,1.42777175,114140.0,114130.0,0.21104]
[1761608575624,1.06269156,114140.0,114130.0,0.21104]
[1761608576286,0.69761137,114140.0,114130.0,0.25060732]
[1761608576503,0.69761137,114140.0,114130.0,0.83015627]
[1761608576504,0.01419192,114140.0,114130.0,0.83015627]
[1761608578021,0.00819192,114140.0,114130.0,0.83015627]
[1761608578232,0.00819192,114140.0,114130.0,0.83215627]
[1761608578881,0.21068532,114140.0,114130.0,0.44333608]
[1761608579097,0.23328532,114140.0,114130.0,0.44333608]
[1761608580160,0.23328532,114140.0,114130.0,0.44233608]
[1761608580371,0.23328532,114140.0,114130.0,0.44333608]
[1761608580612,0.05806192,114140.0,114130.0,0.44333608]
[1761608581043,0.23328532,114140.0,114130.0,0.44333608]
[1761608581314,0.23328532,114140.0,114130.0,0.42784608]
[1761608581560,0.2250934,114140.0,114130.0,0.38727876]
[1761608581757,0.59017359,114140.0,114130.0,0.38827876]
[1761608583221,0.2250934,114140.0,114130.0,0.33223876]
[1761608583427,0.2250934,114140.0,114130.0,0.38831876]
[1761608586359,0.2250934,114140.0,114130.0,0.21308]
[1761608586635,0.2250934,114140.0,114130.0,0.003]
[1761608586846,0.59017359,114140.0,114130.0,0.05908]
[1761608587056,0.59017359,114140.0,114130.0,0.21308]
[1761608587268,0.59017359,114140.0,114130.0,0.157]
[1761608587470,0.59017359,114140.0,114130.0,0.21304]
[1761608591293,0.59017359,114140.0,114130.0,0.38827876]
[1761608594331,0.2250934,114140.0,114130.0,0.38827876]
[1761608594537,0.59017359,114140.0,114130.0,0.21204]
[1761608594757,0.59017359,114140.0,114130.0,0.21304]
[1761608595618,0.59017359,114140.0,114130.0,0.21204]
[1761608595828,0.59017359,114140.0,114130.0,0.21304]
[1761608597242,1.29525378,114140.0,114130.0,0.002]
[1761608597452,1.38507279,114140.0,114130.0,0.21204]
[1761608598083,1.38507279,114140.0,114130.0,0.21304]
[1761608598493,1.38507279,114140.0,114130.0,0.21104]
[1761608599274,1.38507279,114140.0,114130.0,0.001]
[1761608599483,1.38507279,114140.0,114130.0,0.21004]
[1761608599683,1.38507279,114140.0,114130.0,0.05604]
[1761608599892,1.38507279,114140.0,114130.0,0.21004]
[1761608601731,1.01994316,114140.0,114130.0,0.21004]
[1761608603247,1.02094316,114140.0,114130.0,0.21004]
[1761608603453,1.02394316,114140.0,114130.0,0.21004]
[1761608604931,0.17526806,114120.0,114100.0,0.20158405]
[1761608605127,0.27695707,114120.0,114110.0,0.21108]
[1761608605386,0.31620707,114120.0,114110.0,0.21108]
[1761608606138,0.31620707,114120.0,114110.0,0.2111653]
[1761608606771,0.32519101,114120.0,114110.0,0.2111653]
[1761608607177,0.32519101,114120.0,114110.0,0.2131653]